Cogmind - Beta 15 @@@ ROGUE MODE // 2025.09.28 @ 13:45:40 Player: Autumn Result: Self-destructed Performance ------------- Evolutions (1) 500 Regions Visited (3) 600 Robots Destroyed (21) 105 Value Destroyed (450) 450 Prototype IDs (1) 20 Alien Tech Used (0) 0 Bonus (81) 81 TOTAL SCORE: 1756 Bonus ------- Follower Combat Kills 81 Cogmind --------- Core Integrity 333/400 Matter 300/300 Energy 227/325 System Corruption 0% Temperature Cool (0) Movement Flying (114) Ox1 Location -9/Materials Parts ------- > --- POWER (2) -------- Improved Ion Engine Light Nuclear Core > --- PROPULSION (3) --- Flight Unit Flight Unit Flight Unit > --- UTILITY (2) ------ Improved Heat Sink Shield Generator > --- WEAPON (2) ------- Particle Gun Improved Medium Laser > --- INVENTORY (5) ---- Flight Unit Hacking Suite Medium Laser Medium Laser Peak State ------------ > --- POWER ------------ Improved Ion Engine Light Nuclear Core > --- PROPULSION ------- Flight Unit Flight Unit Flight Unit > --- UTILITY ---------- Improved Heat Sink Shield Generator > --- WEAPON ----------- Particle Gun Improved Medium Laser > --- INVENTORY -------- Flight Unit Hacking Suite Medium Laser Medium Laser [Rating: 18] Favorites ----------- Power Light Nuclear Core Engine Ion Engine Power Core Light Nuclear Core Propulsion Flight Unit Leg Aluminum Leg Flight Unit Flight Unit Utility Weight Redist. System Device Weight Redist. System Storage Small Storage Unit Weapon Medium Laser Energy Gun Medium Laser Ballistic Gun Light Assault Rifle Build | -11 -10 -10 -9 ------- Run | Yrd Mat Min Mat Slots Evolved 2 | . . . 2 Power 1 | . . . 1 Propulsion 1 | . . . 1 Utility . | . . . . Weapon . | . . . . Parts Attached 29 | 6 11 3 9 Power 5 | 1 2 . 2 Engine 4 | 1 1 . 2 Core 1 | . 1 . . Reactor . | . . . . Propulsion 10 | 2 3 1 4 Treads . | . . . . Leg 3 | 2 1 . . Wheel . | . . . . Hover . | . . . . Flight 7 | . 2 1 4 Utility 5 | 1 2 1 1 Device 4 | . 2 1 1 Storage 1 | 1 . . . Processor . | . . . . Hackware . | . . . . Protection . | . . . . Artifact . | . . . . Weapon 9 | 2 4 1 2 Energy Gun 5 | . 2 1 2 Energy Cannon . | . . . . Ballistic Gun 4 | 2 2 . . Ballistic Cannon . | . . . . Launcher . | . . . . Special Weapon . | . . . . Impact Weapon . | . . . . Slashing Weapon . | . . . . Piercing Weapon . | . . . . Special Melee Weapon . | . . . . Unidentified Prototypes 1 | . . . 1 Parts Lost 5 | . 2 1 2 Power 2 | . 1 . 1 Propulsion 2 | . 1 1 . Utility 1 | . . . 1 Weapon . | . . . . Highest Loss Streak 2 | . 2 1 2 To Critical Strikes . | . . . . Average Backups 3 | . 3 4 4 Power . | . . . . Propulsion 1 | . . 2 1 Utility . | . . 1 1 Weapon . | . 1 . 1 Tool/Special . | . . . . Unused Backups 1 | . . . 1 Power . | . . . . Propulsion . | . . . . Utility 1 | . . . 1 Weapon . | . . . . Tool/Special . | . . . . Average Slot Usage (%) 91 | . 80 100 96 Engine 6 | . 12 . 9 Core 7 | . . 14 11 Leg 8 | . 19 . . Flight 20 | . 7 28 31 Device 15 | . 2 28 22 Storage 4 | . 10 . . Energy Gun 17 | . 4 28 22 Ballistic Gun 9 | . 23 . . Peak Build Rating 18 | 6 10 12 18 Average Rating 9 | 4 5 10 15 On Entrance 7 | . 6 10 12 Naked Turns . | . . . . Heaviest Build 21 | 12 13 10 21 Greatest Support 20 | 20 20 14 18 Greatest Overweight (x) 1 | . 1 . 1 Average Overweight (x) . | . . . . Largest Inventory Capacity 8 | 8 8 5 5 Average Capacity 5 | 6 7 5 5 Most Carried 6 | 4 6 5 5 Average Carried 3 | 1 3 4 4 Final Capacity 8 | 8 5 5 5 Final Carried 5 | 1 4 5 4 Class Distribution -------------------- 61% | Scavenger-Mutant 38% | Mutant Dominant Class ---------------- Mutant | -10/Materials Scavenger-Mutant | -10/Mines Scavenger-Mutant | -9/Materials Resources | -11 -10 -10 -9 ----------- Run | Yrd Mat Min Mat Matter Collected 639 | 196 308 50 85 Remotely . | . . . . Salvage Created 663 | . 366 . 297 Parts 43 | . 30 . 13 Haulers Intercepted 2 | . 1 . 1 Recyclers Shooed . | . . . . Parts Field Recycled . | . . . . Retrieved Matter . | . . . . Parts Self-Destructed . | . . . . Prevented . | . . . . Kills | -11 -10 -10 -9 ------- Run | Yrd Mat Min Mat Combat Hostiles Destroyed 16 | . 10 . 6 Guns 16 | . 10 . 6 Classes Destroyed 7 | . 5 . 2 Worker 1 | . 1 . . Hauler 2 | . 1 . 1 Operator 1 | . 1 . . Watcher 1 | . . . 1 Swarmer 7 | . 5 . 2 Grunt 8 | . 5 . 3 Sentry 1 | . . . 1 Best Kill Streak 5 | . 5 . 5 Combat Bots Only 4 | . 4 . 3 Max Kills in Single Turn 1 | . 1 . 1 Gunslinging . | . . . . Exploded . | . . . . Melee . | . . . . Uniques/NPCs Destroyed . | . . . . Combat | -11 -10 -10 -9 -------- Run | Yrd Mat Min Mat Hostile Shots Fired 141 | . 94 2 45 Missed 48 | . 29 . 19 Hits 93 | . 65 2 26 Projectile 93 | . 65 2 26 Critical Strikes 2 | . 1 . 1 Damage Taken 933 | . 603 21 309 Core 192 | . 125 . 67 Absorbed by Shields 35 | . . . 35 Core Remaining (%) 75 | 100 . 50 . Volleys Fired 73 | . 50 3 20 Largest 2 | . 2 2 2 Hottest 121 | . 100 100 121 Shots Fired 146 | . 100 6 40 Gun 146 | . 100 6 40 Cannon . | . . . . Launcher . | . . . . Special . | . . . . Kinetic 84 | . 84 . . Thermal 62 | . 16 6 40 Explosive . | . . . . Electromagnetic . | . . . . Robot Hit Streak 7 | . 7 1 6 Robot Miss Streak 6 | . 6 4 2 Penetration Max . | . . . . Secondary Targets 4 | . 3 . 1 Max Gunslinging Chain 1 | . 1 . 1 Shots Hit Robots 78 | . 53 1 24 Core Hits 38 | . 25 . 13 Critical Kills . | . . . . Critical Parts Destroyed . | . . . . Critical Strikes 5 | . 1 . 4 Burn 5 | . 1 . 4 Melee Attacks . | . . . . Impact . | . . . . Slashing . | . . . . Piercing . | . . . . Sneak Attacks . | . . . . Combat Hostiles . | . . . . Follow-up Attacks . | . . . . Damage Inflicted 966 | . 566 13 387 Guns 966 | . 566 13 387 Cannons . | . . . . Explosions . | . . . . Melee . | . . . . Ramming . | . . . . Kinetic 504 | . 504 . . Thermal 462 | . 62 13 387 Explosive . | . . . . Electromagnetic . | . . . . Impact . | . . . . Slashing . | . . . . Piercing . | . . . . Highest Corruption . | . . . . Average Corruption . | . . . . Corruption Purged . | . . . . Corruption Blocked . | . . . . Overload Shots . | . . . . Overflow Damage . | . . . . Projectiles . | . . . . Explosions . | . . . . Melee . | . . . . Knockbacks . | . . . . Impact . | . . . . Kinetic . | . . . . Secondary . | . . . . Self-Inflicted Damage . | . . . . Shots . | . . . . Rammed 1 | . 1 . . Targets Rammed 1 | . 1 . . Kicked . | . . . . Crushed . | . . . . Highest Temperature 315 | . 315 23 246 Average Temperature 89 | . 98 10 90 Received Heat Transfer 279 | . 144 6 129 Siege Activations . | . . . . Martial Activations . | . . . . Shielding Activations . | . . . . Robots Disrupted . | . . . . Combat Hostiles . | . . . . Robots Corrupted . | . . . . Combat Hostiles . | . . . . Parts Fried . | . . . . Impact Corruptions . | . . . . Robots Melted . | . . . . Combat Hostiles . | . . . . Parts Melted 2 | . 1 . 1 Heat Transferred 1591 | . 259 37 1295 Parts Sabotaged . | . . . . Parts Stolen . | . . . . Parts Stripped . | . . . . Power Chain Reactions . | . . . . Alert | -11 -10 -10 -9 ------- Run | Yrd Mat Min Mat Maximum Alert Level . | . . . . Low Security (%) 100 | 100 100 100 100 Level 1 . | . . . . Level 2 . | . . . . Level 3 . | . . . . Level 4 . | . . . . Level 5 . | . . . . High Security . | . . . . Max Security . | . . . . Peak Influence 152 | . 152 114 85 Initial 55 | . . 55 20 Average 45 | . 50 47 48 Influence Increases 604 | . 287 134 183 Destroy 0b10 Robot/C 420 | . 200 100 120 Destroy 0b10 Robot/NC 25 | . 15 . 10 Destroy Leader 96 | . 42 20 34 Allied During Kill 17 | . . 14 3 Destroy Structure 1 | . . . 1 Partial Spotted 15 | . 15 . . Lose Combat Pursuer 30 | . 15 . 15 Influence Decreases 538 | . 145 222 171 Entered New Map 121 | . . 87 34 Time Decay 330 | . 125 125 80 Lost Part 50 | . 20 10 20 Lost Ally 37 | . . . 37 Squads Dispatched 3 | . 3 . . Investigation 1 | . 1 . . Extermination . | . . . . Reinforcement 2 | . 2 . . Assault . | . . . . Garrison . | . . . . Intercept . | . . . . Searches Triggered . | . . . . Construction Impeded . | . . . . Haulers Reinforced . | . . . . Active Scanning Responses . | . . . . Cargo Convoy Interrupts . | . . . . Stealth | -11 -10 -10 -9 --------- Run | Yrd Mat Min Mat Distress Signals 2 | . 1 . 1 Communications Jammed . | . . . . Distress Signals . | . . . . Times Spotted 31 | . 19 5 7 Peak Tracking Total 6 | . 6 4 4 Tactical Retreats 2 | . 1 . 1 Traps | -11 -10 -10 -9 ------- Run | Yrd Mat Min Mat Traps Triggered 1 | . 1 . . Indirectly . | . . . . Trap Hack Attempts . | . . . . Triggered . | . . . . Disarmed . | . . . . Reprogrammed . | . . . . Reused . | . . . . Traps Extracted . | . . . . Installed . | . . . . Triggered . | . . . . Machines | -11 -10 -10 -9 ---------- Run | Yrd Mat Min Mat Machines Disabled . | . . . . Max in Single Turn . | . . . . Machines Repaired . | . . . . Machines Dismantled . | . . . . Machines Sabotaged . | . . . . Overloaded Fab Kills . | . . . . Hacking | -11 -10 -10 -9 --------- Run | Yrd Mat Min Mat Machines Accessed 1 | . . . 1 Terminals 1 | . . . 1 Fabricators . | . . . . Repair Stations . | . . . . Recycling Units . | . . . . Scanalyzers . | . . . . Garrison Access . | . . . . Total Hacks 1 | . . . 1 Successful . | . . . . Failed 1 | . . . 1 Catastrophic . | . . . . Database Lockouts . | . . . . Manual . | . . . . Terminals 1 | . . . 1 Fabricators . | . . . . Repair Stations . | . . . . Recycling Units . | . . . . Scanalyzers . | . . . . Garrison Access . | . . . . Terminal Hacks . | . . . . Fabricator Hacks . | . . . . Repair Station Hacks . | . . . . Recycling Unit Hacks . | . . . . Scanalyzer . | . . . . Garrison Access Hacks . | . . . . Unauthorized Hacks . | . . . . Terminals . | . . . . Fabricators . | . . . . Repair Stations . | . . . . Recycling Units . | . . . . Scanalyzers . | . . . . Garrison Access . | . . . . Data Cores Recovered . | . . . . Used . | . . . . Hacking Detections 1 | . . . 1 Full Trace Events . | . . . . Feedback Events . | . . . . Feedback Blocked . | . . . . Robot Schematics Acquired . | . . . . Robots Built . | . . . . Authchips . | . . . . Time . | . . . . Total Robot Build Rating . | . . . . Part Schematics Acquired . | . . . . Parts Built . | . . . . Authchips . | . . . . Time . | . . . . Total Part Build Rating . | . . . . Parts Repaired . | . . . . Time . | . . . . Parts Recycled . | . . . . Recycled Matter . | . . . . Retrieved Matter . | . . . . Retrieved Components . | . . . . Parts Scanalyzed . | . . . . Part Schematics Acquired . | . . . . Parts Damaged . | . . . . Bothacking | -11 -10 -10 -9 ------------ Run | Yrd Mat Min Mat Used RIF Installer . | . . . . Robots Hacked . | . . . . Non-combat . | . . . . Combat . | . . . . Robot Hacks Applied . | . . . . Relay Couplers Released . | . . . . Fabnet Peak Effective % . | . . . . Robots Rewired . | . . . . Allies Hacked . | . . . . Hacks Repelled . | . . . . Allies | -11 -10 -10 -9 -------- Run | Yrd Mat Min Mat Total Allies 2 | . . 2 . Largest Group 2 | . . 2 2 Highest-Rated Group 42 | . . 42 42 Highest-Rated Ally 31 | . . 31 31 Total Orders . | . . . . Ally Attacks 13 | . . 13 . Total Damage 190 | . . 190 . Kills 5 | . . 5 . Allies Corrupted . | . . . . Allies Melted . | . . . . Intel | -11 -10 -10 -9 ------- Run | Yrd Mat Min Mat Active Infowar (turns) . | . . . . Robot Analysis Total . | . . . . Derelict Logs Recovered 3 | . . 3 . Drone Launches . | . . . . Drone Recoveries . | . . . . Exploration | -11 -10 -10 -9 ------------- Run | Yrd Mat Min Mat Turns Passed 955 | 71 377 334 173 Spaces Moved 1112 | 55 242 624 191 Core 10 | 10 . . . Treads . | . . . . Legs 177 | 45 132 . . Wheels . | . . . . Hover . | . . . . Flight 925 | . 110 624 191 Fastest Speed 34 | 50 37 37 34 Average Speed 52 | 107 82 37 47 Slowest Speed 120 | 120 120 37 117 Overloaded Moves . | . . . . Propulsion Burnouts . | . . . . Robots Hopped 4 | . 2 2 . Potential Cave-ins . | . . . . Cave-ins Triggered . | . . . . Exploration Rate (%) 38 | 3 46 93 12 Regions Visited 3 Branch Regions 1 Pre-discovered Areas . | . . . . Known Exits Taken . | . . . . Unknown Exits Taken 3 | 1 1 1 . Scrap Searched 2 | . . 2 . Spaces Dug . | . . . . Terrain Destroyed . | . . . . Melee . | . . . . Projectile . | . . . . AOE . | . . . . Terrain Rammed . | . . . . Walls Destroyed . | . . . . Machines Disabled . | . . . . Actions | -11 -10 -10 -9 --------- Run | Yrd Mat Min Mat Total 1350 | 67 330 718 235 Wait 87 | . . 85 2 Move 1101 | 54 237 619 191 Hop 4 | . 2 2 . Pick Up 34 | 7 15 4 8 Fast Attach . | . . . . Attach 21 | 6 9 1 5 Detach 3 | . 3 . . Swap 10 | . 4 2 4 Drop 16 | . 9 2 5 Fire 73 | . 50 3 20 Melee . | . . . . Ram 1 | . 1 . . Kick . | . . . . Crush . | . . . . Escape Stasis . | . . . . Rewire . | . . . . Trap . | . . . . Miscellaneous . | . . . . Route ------- -11/Scrapyard -10/Materials -10/Mines -9/Materials (discovered 2 exits: Mat / Min) History --------- Turn | Location | Event 5 | -11/Scrapyard | Discovered new exit (range 15) 72 | -11/Scrapyard | Entered Materials 308 | -10/Materials | Build established: Mutant 446 | -10/Materials | Discovered new exit (range 8) 449 | -10/Materials | Entered Mines 488 | -10/Mines | Learned Materials trap positions 497 | -10/Mines | Learned 2 Materials zone layouts 522 | -10/Mines | Learned 4 Materials zone layouts 669 | -10/Mines | Build established: Scavenger-Mutant 722 | -10/Mines | Discovered new exit (range 8) 783 | -10/Mines | Entered Materials 783 | -9/Materials | Accompanied by 2 allies 783 | -9/Materials | Evolved 2 slots: Power x1, Propulsion x1 784 | -9/Materials | Identified exit to Mines 784 | -9/Materials | Identified exit to Materials 785 | -9/Materials | Loaded intel: 20 trap records 788 | -9/Materials | Led the pair of lost Derelicts to an unsafe place 956 | -9/Materials | Self-destructed Last Messages --------------- R-06 Scavenger collects Flight Unit. Acquired 10 matter. Dropped Flight Unit. Acquired Flight Unit. Dropped Flight Unit. Acquired Flight Unit. Dropped Flight Unit. Acquired Flight Unit. Integration Channel disabled. R-06 Scavenger collects Med. Storage Unit. Weight Redist. System destroyed. R-06 Scavenger collects Weight Redist. System. Acquired 25 matter. Acquired Flight Unit. Lgt. Ion Engine destroyed. Y-45 Defender destroyed. Dropped Flight Unit. Acquired Imp. Ion Engine. Acquired 10 matter. K-01 Serf collects debris. Map ----- +----------------------------------------------------+ | | | | | | | | | | | | | | | | | | | | | | | | | | | | | ?????????????????????????????????????????????????? | | ?????????????##########??????????????????????????? | | #######??????# #??????????????????????????? | | #??????# #??????????????????????????? | | ######## #??????????????????????????? | | # # #???########???????????????? | | # # #???# #???????????????? | | #""" # #####""" #???????????????? | | #"R # # #""" #???????????????? | | #""" # # #""" #???????????????? | | # # # =# = #???????????????? | | ###+########+######+### @;! #???????????????? | | ## ########???????????????? | | ! u#??????????????????????? | | ## #??????????????????????? | | # #??????????????????????? | | # """"" """"" =#??????????????????????? | | # """"""""" """"""""" #??????????????????????? | | + """!"""! """ " ###+######?????????????? | | # !![%!% % ??????? | | # =%%!** k ??????? | | # =%* [% % ??????? | | ##T####+####################+########## ???????? | | ###### #?# ?????????????????????????? | | ?????# """ #?# """?????????????????????????? | | ?????# """ ### """ # """ #??????# ## | | ?????# """ ## """ # """ #??????# ###### | | ?????# ### " " # """ #??????# #????? | | ?????# #?# "R" # #??????# #?#### | | ?????########?# """ ########??????# #?# | | ??????????????#####+#######?????????????# #?# | | ??????########### #?????????????????# #?# | | ####### #?????????????????# #?# | | # # #?????????????????# #?# | | # # #?????????????????# #?# " | | # # ####### #?????????????????# #?# T | +----------------------------------------------------+ Best States ------------- Heat Dissipation 42 Energy Generation 19 Energy Capacity 250 Matter Stores 300 Matter Capacity 300 Sight Range 16 Terrain Scan Density 10 Additional Mass Support 6 Evasion (%) 63 Item Schematics ----------------- None Robot Schematics ------------------ None Fabricated ------------ Nothing Repaired ---------- Nothing Alien Tech Used ----------------- None Achievements -------------- None Challenges ------------ None Game ------ Seed GrapheneVortexReconfigurator Manual? 0 Play Time 00:15:42 Cumulative 3.7 hours Start 2025.09.28 @ 12:03:51 End 2025.09.28 @ 13:45:40 Sessions 3 Manual Loads 0 Difficulty Rogue Special Mode None Game No. 6 Rogue 6 Adventurer 0 Explorer 0 Win Type - Total 0 Types 0/0/0/0/0/0/0/0/0/0 Lore% 1 Gallery% 8 Achievement% 7 Wizard Run 0 Options --------- Layout 1 ASCII 0 Keyboard 0 Movement Arrows Keybinds 0 Fullscreen 1 Font 24/Smallcaps Map View 76x35 Zoom Use 0% Tactical HUD 0 Map Filters NONE Filters NONE Steam 1 RUN: e036cf34-6395-42ca-896e-4861ded6aaba